[Event "RUS-ch Blitz Women 2018"]
[Site "Sochi"]
[Date "2018.10.07"]
[Round "8"]
[White "Lysenko, Margarita"]
[Black "Vasilevich, Tatjana"]
[Result "0-1"]
[ECO "A29"]
[WhiteElo "2210"]
[BlackElo "2360"]
[Annotator "NA"]
[PlyCount "140"]
[EventDate "2018.10.07"]
[EventType "swiss"]
[EventCountry "RUS"]
[SourceTitle "playchess.com"]
[Source "ChessBase"]
[SourceQuality "1"]
[TimeControl "180+2"]

1. c4 {[%emt 0:00:00]} e5 {[%emt 0:00:00]} 2. Nc3 {[%emt 0:00:02]} Nf6 {[%emt 0:00:00]} 3. Nf3 {[%emt 0:00:01]} Nc6 {[%emt 0:00:02]} 4. g3 {[%emt 0:00:02]} d5 {[%emt 0:00:01]} 5. cxd5 {[%emt 0:00:05]} Nxd5 {[%emt 0:00:01]} 6. Bg2 {[%emt 0:00:02]} Nb6 {[%emt 0:00:03]} 7. O-O {[%emt 0:00:04]} Be7 {[%emt 0:00:02]} 8. d3 {[%emt 0:00:16]} O-O {[%emt 0:00:06]} 9. Bd2 {[%emt 0:00:18]} Be6 {[%emt 0:00:04]} 10. Rc1 {[%emt 0:00:05]} f6 {[%emt 0:00:13]} 11. Be3 {[%emt 0:00:24]} Nd5 {[%emt 0:00:05]} 12. Nxd5 {[%emt 0:00:04]} Bxd5 {[%emt 0:00:01]} 13. a3 {[%emt 0:00:09]} a5 {[%emt 0:00:16]} 14. Nd2 {[%emt 0:00:16]} a4 {[%emt 0:00:07]} 15. Bxd5+ {[%emt 0:00:08]} Qxd5 {[%emt 0:00:00]} 16. Qc2 {[%emt 0:00:02]} Rfd8 {[%emt 0:00:17]} 17. Qc4 {[%emt 0:00:02]} Ra5 {[%emt 0:00:17]} 18. Qxd5+ {[%emt 0:00:07]} Rdxd5 {[%emt 0:00:01]} 19. Rc2 {[%emt 0:00:14]} Rab5 {[%emt 0:00:04]} 20. Rfc1 {[%emt 0:00:04]} Kf7 {[%emt 0:00:05]} 21. Ne4 {[%emt 0:00:02]} Rd8 {[%emt 0:00:22]} 22. Nc3 {[%emt 0:00:01]} Ra5 {[%emt 0:00:02]} 23. Ne4 {[%emt 0:00:02]} Rb5 {[%emt 0:00:18]} 24. Nc3 {[%emt 0:00:06]} Ra5 {[%emt 0:00:00]} 25. Ne4 {[%emt 0:00:01]} Bd6 {[%emt 0:00:20]} 26. Kf1 {[%emt 0:00:05]} Ke7 {[%emt 0:00:03]} 27. Nd2 {[%emt 0:00:23]} h6 {[%emt 0:00:08]} 28. Ne4 {[%emt 0:00:05]} f5 {[%emt 0:00:03]} 29. Nd2 {[%emt 0:00:21]} Ke6 {[%emt 0:00:06]} 30. Nb1 {[%emt 0:00:06]} g5 {[%emt 0:00:05]} 31. Bd2 {[%emt 0:00:02]} Ra6 {[%emt 0:00:05]} 32. e3 {[%emt 0:00:05]} h5 {[%emt 0:00:08]} 33. Ke2 {[%emt 0:00:01]} Rh8 {[%emt 0:00:04]} 34. Bc3 {[%emt 0:00:06]} h4 {[%emt 0:00:04]} 35. Nd2 {[%emt 0:00:04]} hxg3 {[%emt 0:00:02]} 36. hxg3 {[%emt 0:00:01]} g4 {[%emt 0:00:03]} 37. Rd1 {[%emt 0:00:04]} Rh2 {[%emt 0:00:05]} 38. Nc4 {[%emt 0:00:06]} Ra8 {[%emt 0:00:06]} 39. Rcc1 {[%emt 0:00:01]} Rah8 {[%emt 0:00:03]} 40. Nxd6 {[%emt 0:00:07]} cxd6 {[%emt 0:00:02]} 41. d4 {[%emt 0:00:01]} exd4 {[%emt 0:00:07]} 42. Bxd4 {[%emt 0:00:01]} R8h3 {[%emt 0:00:03]} 43. Rg1 {[%emt 0:00:04]} Nxd4+ {[%emt 0:00:06]} 44. exd4 {[%emt 0:00:02]} Kd7 {[%emt 0:00:05]} 45. Rc4 {[%emt 0:00:03]} b5 {[%emt 0:00:01]} 46. Rcc1 {[%emt 0:00:02]} Rh8 {[%emt 0:00:03]} 47. Rgf1 {[%emt 0:00:03]} Re8+ {[%emt 0:00:01]} 48. Kd3 {[%emt 0:00:02]} Rh6 {[%emt 0:00:03]} 49. Rce1 {[%emt 0:00:01]} Rhe6 {[%emt 0:00:06]} 50. Rxe6 {[%emt 0:00:02]} Rxe6 {[%emt 0:00:02]} 51. Rh1 {[%emt 0:00:00]} Kc6 {[%emt 0:00:02]} 52. Rh5 {[%emt 0:00:04]} Rf6 53. Rg5 Kd5 {[%emt 0:00:08]} 54. Rg8 {[%emt 0:00:03]} f4 {[%emt 0:00:01]} 55. Rxg4 {[%emt 0:00:02]} fxg3 {[%emt 0:00:01]} 56. fxg3 {[%emt 0:00:02]} Rf2 {[%emt 0:00:01]} 57. Kc3 {[%emt 0:00:03]} Rf3+ {[%emt 0:00:01]} 58. Kc2 {[%emt 0:00:02]} Rf2+ {[%emt 0:00:02]} 59. Kc3 {[%emt 0:00:02]} Rf3+ {[%emt 0:00:02]} 60. Kc2 {[%emt 0:00:01]} Kc4 {[%emt 0:00:01]} 61. d5+ {[%emt 0:00:04]} Kxd5 {[%emt 0:00:01]} 62. Rg5+ {[%emt 0:00:00]} Kc4 {[%emt 0:00:01]} 63. Rg4+ {[%emt 0:00:02]} Kc5 {[%emt 0:00:00]} 64. Rg5+ {[%emt 0:00:00]} d5 {[%emt 0:00:01]} 65. g4 {[%emt 0:00:03]} Kc4 {[%emt 0:00:01]} 66. Rf5 {[%emt 0:00:03]} Rg3 {[%emt 0:00:02]} 67. Rf4+ {[%emt 0:00:01]} d4 {[%emt 0:00:00]} 68. Kd2 {[%emt 0:00:04]} Rg2+ {[%emt 0:00:02]} 69. Kc1 {[%emt 0:00:02]} Kd3 {[%emt 0:00:05]} 70. Rf5 {[%emt 0:00:03]} Rg1+ {[%emt 0:00:03]} 0-1

[Event "RUS-ch Blitz Women 2018"]
[Site "Sochi"]
[Date "2018.10.07"]
[Round "8"]
[White "Markelova, Lubov"]
[Black "Kashlinskaya, Alina"]
[Result "0-1"]
[ECO "E91"]
[WhiteElo "2190"]
[BlackElo "2447"]
[Annotator "NA"]
[PlyCount "70"]
[EventDate "2018.10.07"]
[EventType "swiss"]
[EventCountry "RUS"]
[SourceTitle "playchess.com"]
[Source "ChessBase"]
[SourceQuality "1"]
[TimeControl "180+2"]

1. Nf3 {[%emt 0:00:00]} Nf6 {[%emt 0:00:00]} 2. c4 {[%emt 0:00:00]} g6 {[%emt 0:00:03]} 3. Nc3 {[%emt 0:00:01]} Bg7 {[%emt 0:00:01]} 4. e4 {[%emt 0:00:00]} d6 {[%emt 0:00:01]} 5. d4 {[%emt 0:00:01]} O-O {[%emt 0:00:01]} 6. Be2 {[%emt 0:00:01]} Nbd7 {[%emt 0:00:01]} 7. O-O e5 8. d5 {[%emt 0:00:05]} Nc5 {[%emt 0:00:04]} 9. Qc2 {[%emt 0:00:01]} a5 {[%emt 0:00:04]} 10. Bg5 {[%emt 0:00:01]} h6 {[%emt 0:00:03]} 11. Be3 {[%emt 0:00:02]} Nfd7 {[%emt 0:00:11]} 12. Nd2 {[%emt 0:00:06] E94: King's Indian: Classical: 6 Be2 e5 7 0-0: Various Black 7th moves} f5 {[%emt 0:00:03]} 13. f3 {[%emt 0:00:01]} f4 {[%emt 0:00:06]} 14. Bf2 {[%emt 0:00:02]} Nf6 {[%emt 0:00:02]} (14... g5 15. b3 h5 16. a3 Na6 17. Rfb1 Rf6 18. Qd1 Rg6 19. b4 Bf8 {1-0 (47) Savchenko,B (2584)-Nyzhnyk,I (2637) Moscow 2013}) 15. a3 {[%emt 0:00:12]} a4 $146 {[%emt 0:00:02]} ({Predecessor:} 15... g5 16. b4 Na6 17. Qd1 h5 18. c5 g4 19. Nc4 Rf7 20. Nxa5 {0-1 (37) Markelova,L (2119)-Kashlinskaya,A (2455) Sochi 2017}) 16. Bxc5 {[%emt 0:00:04]} dxc5 {[%emt 0:00:01]} 17. Nxa4 {[%emt 0:00:02]} Qd6 {[%emt 0:00:25]} 18. b4 {[%emt 0:00:22]} Nd7 {[%emt 0:00:36]} 19. Rfc1 {[%emt 0:00:32]} g5 {[%emt 0:00:09]} 20. Nc3 $16 {[%emt 0:00:11]} cxb4 {[%emt 0:00:11]} 21. Nb5 {[%emt 0:00:01]} Qc5+ {[%emt 0:00:06]} 22. Kh1 {[%emt 0:00:11]} bxa3 {[%emt 0:00:03]} 23. Nb3 {[%emt 0:00:05]} Qe3 {[%emt 0:00:14]} 24. Nxc7 {[%emt 0:00:04]} Ra4 {[%emt 0:00:18]} 25. Ne6 {[%emt 0:00:05]} Rf7 {[%emt 0:00:00]} 26. c5 {[%emt 0:00:20]} Nb8 {[%emt 0:00:28]} 27. Nxg7 {[%emt 0:00:46]} Rxg7 {[%emt 0:00:01]} 28. c6 {[%emt 0:00:08]} bxc6 {[%emt 0:00:01]} 29. dxc6 {[%emt 0:00:03]} g4 {[%emt 0:00:03]} 30. fxg4 {[%emt 0:00:16]} Rxe4 {[%emt 0:00:12]} 31. Bf3 {[%emt 0:00:03]} Rb4 {[%emt 0:00:01]} 32. Qc5 {[%emt 0:00:08]} e4 {[%emt 0:00:13]} 33. Qxb4 {[%emt 0:00:03]} exf3 {[%emt 0:00:02]} 34. Qxb8 {[%emt 0:00:07]} fxg2+ {[%emt 0:00:01]} 35. Kxg2 {[%emt 0:00:01]} Rxg4+ {[%emt 0:00:01]} 0-1

[Event "RUS-ch Blitz Women 2018"]
[Site "Sochi"]
[Date "2018.10.07"]
[Round "8"]
[White "Shafigullina, Zarina"]
[Black "Kabanova, Ekaterina"]
[Result "1-0"]
[ECO "A44"]
[WhiteElo "2150"]
[BlackElo "2082"]
[Annotator "NA"]
[PlyCount "87"]
[EventDate "2018.10.07"]
[EventType "swiss"]
[EventCountry "RUS"]
[SourceTitle "playchess.com"]
[Source "ChessBase"]
[SourceQuality "1"]
[TimeControl "180+2"]

1. d4 {[%emt 0:00:00]} c5 {[%emt 0:00:00]} 2. d5 {[%emt 0:00:00]} e5 {[%emt 0:00:00]} 3. dxe6 {[%emt 0:00:02]} fxe6 {[%emt 0:00:01]} 4. c4 {[%emt 0:00:02]} Nf6 {[%emt 0:00:02]} 5. Nc3 {[%emt 0:00:00]} Nc6 {[%emt 0:00:04]} 6. e4 {[%emt 0:00:02]} d6 {[%emt 0:00:01]} 7. Nf3 {[%emt 0:00:05]} Be7 {[%emt 0:00:01]} 8. h3 {[%emt 0:00:03]} a6 {[%emt 0:00:02]} 9. Be3 {[%emt 0:00:02]} O-O {[%emt 0:00:03]} 10. Be2 {[%emt 0:00:01]} Rb8 {[%emt 0:00:01]} 11. O-O {[%emt 0:00:04]} Qc7 {[%emt 0:00:01]} 12. a3 {[%emt 0:00:06]} Bd7 {[%emt 0:00:02]} 13. Qc2 {[%emt 0:00:02]} h6 {[%emt 0:00:13]} 14. Nh4 {[%emt 0:00:05]} Be8 {[%emt 0:00:04]} 15. Nf3 {[%emt 0:00:14]} Bg6 {[%emt 0:00:02]} 16. Bd3 {[%emt 0:00:01]} Nd7 {[%emt 0:00:14]} 17. Nh2 {[%emt 0:00:18]} Nde5 {[%emt 0:00:10]} 18. Be2 {[%emt 0:00:01]} Nd4 {[%emt 0:00:11]} 19. Qd1 {[%emt 0:00:31]} Nec6 {[%emt 0:00:04]} 20. Bd3 {[%emt 0:00:06]} Rf7 {[%emt 0:00:09]} 21. f4 {[%emt 0:00:03]} Rbf8 {[%emt 0:00:01]} 22. Qg4 {[%emt 0:00:08]} Bh7 {[%emt 0:00:39]} 23. Nf3 {[%emt 0:00:15]} Nxf3+ {[%emt 0:00:05]} 24. Rxf3 {[%emt 0:00:02]} Nd4 {[%emt 0:00:05]} 25. Bxd4 {[%emt 0:00:20]} cxd4 {[%emt 0:00:01]} 26. Ne2 {[%emt 0:00:01]} e5 {[%emt 0:00:06]} 27. f5 {[%emt 0:00:06]} Kh8 {[%emt 0:00:05]} 28. Ng3 {[%emt 0:00:18]} Bg5 {[%emt 0:00:25]} 29. Raf1 {[%emt 0:00:05]} Qb6 {[%emt 0:00:01]} 30. b4 {[%emt 0:00:03]} a5 {[%emt 0:00:02]} 31. b5 {[%emt 0:00:17]} Qc5 {[%emt 0:00:02]} 32. a4 {[%emt 0:00:06]} Qb4 {[%emt 0:00:02]} 33. Nh5 {[%emt 0:00:21]} Qd2 {[%emt 0:00:14]} 34. Kh1 {[%emt 0:00:12]} Bf6 {[%emt 0:00:21]} 35. R1f2 {[%emt 0:00:04]} Qd1+ 36. Rf1 Qxa4 {[%emt 0:00:06]} 37. Qg3 {[%emt 0:00:04]} Qb4 {[%emt 0:00:05]} 38. h4 {[%emt 0:00:02]} b6 {[%emt 0:00:02]} 39. Qf2 {[%emt 0:00:01]} a4 {[%emt 0:00:06]} 40. g4 {[%emt 0:00:01]} a3 {[%emt 0:00:15]} 41. Rg1 {[%emt 0:00:01]} Qb2 {[%emt 0:00:01]} 42. Qxb2 {[%emt 0:00:03]} axb2 {[%emt 0:00:01]} 43. g5 {[%emt 0:00:02]} hxg5 44. hxg5 {[%emt 0:00:01]} 1-0

[Event "RUS-ch Blitz Women 2018"]
[Site "Sochi"]
[Date "2018.10.07"]
[Round "8"]
[White "Sukhareva, Evgeniya"]
[Black "Sirotkina, Nina"]
[Result "1-0"]
[ECO "D37"]
[WhiteElo "2125"]
[BlackElo "2188"]
[Annotator "NA"]
[PlyCount "101"]
[EventDate "2018.10.07"]
[EventType "swiss"]
[EventCountry "RUS"]
[SourceTitle "playchess.com"]
[Source "ChessBase"]
[SourceQuality "1"]
[TimeControl "180+2"]

1. d4 {[%emt 0:00:00]} Nf6 {[%emt 0:00:00]} 2. c4 {[%emt 0:00:00]} e6 {[%emt 0:00:02]} 3. Nc3 {[%emt 0:00:00]} d5 {[%emt 0:00:00]} 4. Nf3 {[%emt 0:00:01]} Be7 {[%emt 0:00:02]} 5. Bf4 {[%emt 0:00:01]} O-O {[%emt 0:00:04]} 6. e3 {[%emt 0:00:01]} a6 {[%emt 0:00:06]} 7. a3 {[%emt 0:00:02]} dxc4 {[%emt 0:00:04]} 8. Bxc4 {[%emt 0:00:01]} b5 {[%emt 0:00:01]} 9. Bd3 {[%emt 0:00:02]} Bb7 {[%emt 0:00:01]} 10. e4 {[%emt 0:00:06]} Nbd7 {[%emt 0:00:04]} 11. O-O {[%emt 0:00:02]} c5 {[%emt 0:00:01]} 12. Rc1 {[%emt 0:00:08]} cxd4 {[%emt 0:00:04]} 13. Nxd4 {[%emt 0:00:03]} Nc5 {[%emt 0:00:06]} 14. Be5 {[%emt 0:00:33]} Nxd3 {[%emt 0:00:53]} 15. Qxd3 {[%emt 0:00:02]} Rc8 {[%emt 0:00:00]} 16. Rfd1 {[%emt 0:00:07]} Qb6 {[%emt 0:00:01]} 17. b4 {[%emt 0:00:32]} Rfd8 {[%emt 0:00:03]} 18. Qg3 {[%emt 0:00:32]} Ne8 {[%emt 0:00:01]} 19. Nde2 {[%emt 0:00:15]} Bf6 {[%emt 0:00:05]} 20. Bxf6 {[%emt 0:00:28]} Nxf6 {[%emt 0:00:02]} 21. Qe5 {[%emt 0:00:03]} Qxf2+ {[%emt 0:00:10]} 22. Kh1 {[%emt 0:00:22]} Qb6 {[%emt 0:00:19]} 23. Rf1 {[%emt 0:00:08]} Rd2 {[%emt 0:00:25]} 24. Rxf6 {[%emt 0:00:05]} gxf6 {[%emt 0:00:01]} 25. Qxf6 {[%emt 0:00:03]} Qd8 {[%emt 0:00:08]} 26. Qf1 {[%emt 0:00:08]} Qg5 {[%emt 0:00:07]} 27. h3 {[%emt 0:00:03]} Kg7 {[%emt 0:00:08]} 28. Re1 {[%emt 0:00:02]} Rcd8 {[%emt 0:00:11]} 29. Ng1 {[%emt 0:00:03]} R8d3 {[%emt 0:00:07]} 30. Nf3 {[%emt 0:00:01]} Qg3 {[%emt 0:00:26]} 31. Ne2 {[%emt 0:00:01]} Rxf3 {[%emt 0:00:06]} 32. gxf3 {[%emt 0:00:05]} Qe5 {[%emt 0:00:06]} 33. Qf2 {[%emt 0:00:01]} Kf8 {[%emt 0:00:05]} 34. Qe3 {[%emt 0:00:02]} Bc6 {[%emt 0:00:03]} 35. Qxd2 {[%emt 0:00:01]} Qh5 {[%emt 0:00:03]} 36. Qe3 {[%emt 0:00:02]} Qxh3+ {[%emt 0:00:01]} 37. Kg1 {[%emt 0:00:00]} f5 {[%emt 0:00:04]} 38. exf5 {[%emt 0:00:02]} Bxf3 {[%emt 0:00:01]} 39. Qc5+ {[%emt 0:00:02]} Kg7 {[%emt 0:00:02]} 40. Qd4+ {[%emt 0:00:03]} Kf8 {[%emt 0:00:01]} 41. Qd6+ {[%emt 0:00:00]} Kg7 {[%emt 0:00:01]} 42. Qg3+ {[%emt 0:00:01]} Qxg3+ {[%emt 0:00:02]} 43. Nxg3 {[%emt 0:00:01]} exf5 44. Nxf5+ {[%emt 0:00:02]} Kf6 {[%emt 0:00:02]} 45. Nd4 {[%emt 0:00:01]} Bd5 {[%emt 0:00:01]} 46. Kf2 {[%emt 0:00:02]} Bc4 {[%emt 0:00:02]} 47. Ke3 {[%emt 0:00:01]} h5 {[%emt 0:00:01]} 48. Rh1 {[%emt 0:00:01]} Kg5 {[%emt 0:00:01]} 49. Nf3+ {[%emt 0:00:02]} Kg4 {[%emt 0:00:01]} 50. Rh4+ {[%emt 0:00:01]} Kg3 {[%emt 0:00:01]} 51. Rxh5 {[%emt 0:00:02]} 1-0

[Event "RUS-ch Blitz Women 2018"]
[Site "Sochi"]
[Date "2018.10.07"]
[Round "8"]
[White "Miroshnik, Ekaterina"]
[Black "Kovanova, Baira"]
[Result "0-1"]
[ECO "E16"]
[WhiteElo "2023"]
[BlackElo "2350"]
[Annotator "NA"]
[PlyCount "98"]
[EventDate "2018.10.07"]
[EventType "swiss"]
[EventCountry "RUS"]
[SourceTitle "playchess.com"]
[Source "ChessBase"]
[SourceQuality "1"]
[TimeControl "180+2"]

1. d4 {[%emt 0:00:00]} Nf6 {[%emt 0:00:00]} 2. c4 {[%emt 0:00:00]} e6 {[%emt 0:00:00]} 3. Nf3 {[%emt 0:00:00]} Bb4+ {[%emt 0:00:01]} 4. Bd2 {[%emt 0:00:01]} Qe7 {[%emt 0:00:04]} 5. a3 {[%emt 0:00:01]} Bxd2+ {[%emt 0:00:02]} 6. Qxd2 {[%emt 0:00:01]} d5 {[%emt 0:00:02]} 7. e3 {[%emt 0:00:02]} O-O {[%emt 0:00:04]} 8. Bd3 {[%emt 0:00:07]} dxc4 {[%emt 0:00:20]} 9. Bxc4 {[%emt 0:00:01]} a6 {[%emt 0:00:01]} 10. O-O {[%emt 0:00:05]} b5 {[%emt 0:00:01]} 11. Bd3 {[%emt 0:00:06]} c5 {[%emt 0:00:05]} 12. dxc5 {[%emt 0:00:05]} Qxc5 {[%emt 0:00:00]} 13. Rc1 {[%emt 0:00:01]} Qe7 {[%emt 0:00:14]} 14. Qa5 {[%emt 0:00:30]} Bb7 {[%emt 0:00:15]} 15. Nd4 {[%emt 0:00:37]} Nbd7 {[%emt 0:00:18]} 16. Nd2 {[%emt 0:00:33]} Qd6 {[%emt 0:00:29]} 17. Be2 {[%emt 0:00:53]} e5 {[%emt 0:00:06]} 18. N4b3 {[%emt 0:00:10]} Rac8 {[%emt 0:00:07]} 19. f3 {[%emt 0:00:09]} Nd5 {[%emt 0:00:29]} 20. Kf2 {[%emt 0:00:10]} Qh6 {[%emt 0:00:02]} 21. Nf1 {[%emt 0:00:02]} Qh4+ {[%emt 0:00:16]} 22. g3 {[%emt 0:00:01]} Qh6 {[%emt 0:00:13]} 23. e4 {[%emt 0:00:03]} N5b6 {[%emt 0:00:06]} 24. Qd2 {[%emt 0:00:01]} Qe6 {[%emt 0:00:04]} 25. Na5 {[%emt 0:00:04]} Ba8 {[%emt 0:00:02]} 26. Qe3 {[%emt 0:00:03]} h6 {[%emt 0:00:03]} 27. Rxc8 {[%emt 0:00:01]} Rxc8 28. Rc1 Nc5 {[%emt 0:00:08]} 29. b4 {[%emt 0:00:03]} Nca4 {[%emt 0:00:04]} 30. Rxc8+ {[%emt 0:00:01]} Qxc8 {[%emt 0:00:01]} 31. Nd2 {[%emt 0:00:01]} Qc2 {[%emt 0:00:03]} 32. Qd3 {[%emt 0:00:03]} Qc8 {[%emt 0:00:03]} 33. Qd6 {[%emt 0:00:02]} Qe8 {[%emt 0:00:07]} 34. Ndb3 {[%emt 0:00:02]} f6 {[%emt 0:00:07]} 35. Nc5 {[%emt 0:00:02]} Nxc5 {[%emt 0:00:04]} 36. bxc5 {[%emt 0:00:01]} Nc8 {[%emt 0:00:02]} 37. Qc7 {[%emt 0:00:04]} Ne7 {[%emt 0:00:03]} 38. a4 {[%emt 0:00:03]} Kf7 {[%emt 0:00:04]} 39. axb5 {[%emt 0:00:02]} axb5 {[%emt 0:00:01]} 40. Qb6 {[%emt 0:00:01]} Qd7 41. Qxb5 {[%emt 0:00:02]} Qd4+ {[%emt 0:00:04]} 42. Kg2 {[%emt 0:00:01]} Qd2 {[%emt 0:00:01]} 43. Qc4+ {[%emt 0:00:02]} Kg6 {[%emt 0:00:04]} 44. h4 {[%emt 0:00:02]} h5 {[%emt 0:00:02]} 45. Kf2 {[%emt 0:00:02]} Bc6 {[%emt 0:00:02]} 46. Nxc6 {[%emt 0:00:02]} Nxc6 {[%emt 0:00:01]} 47. Qd5 {[%emt 0:00:05]} Nd4 {[%emt 0:00:01]} 48. Qc4 {[%emt 0:00:02]} Nc2 {[%emt 0:00:04]} 49. c6 {[%emt 0:00:03]} Qe1+ {[%emt 0:00:01]} 0-1

[Event "RUS-ch Blitz Women 2018"]
[Site "Sochi"]
[Date "2018.10.07"]
[Round "9"]
[White "Bivol, Alina"]
[Black "Kabanova, Ekaterina"]
[Result "1-0"]
[ECO "A04"]
[WhiteElo "2403"]
[BlackElo "2082"]
[Annotator "NA"]
[PlyCount "99"]
[EventDate "2018.10.07"]
[EventType "swiss"]
[EventCountry "RUS"]
[SourceTitle "playchess.com"]
[Source "ChessBase"]
[SourceQuality "1"]
[TimeControl "180+2"]

1. Nf3 {[%emt 0:00:00]} c5 {[%emt 0:00:00]} 2. g3 {[%emt 0:00:00]} e6 {[%emt 0:00:00]} 3. Bg2 {[%emt 0:00:02]} Nf6 {[%emt 0:00:01]} 4. c4 {[%emt 0:00:01]} a6 {[%emt 0:00:01]} 5. O-O {[%emt 0:00:05]} Qc7 {[%emt 0:00:00]} 6. Nc3 {[%emt 0:00:02]} Be7 {[%emt 0:00:01]} 7. b3 {[%emt 0:00:01]} O-O {[%emt 0:00:01]} 8. Bb2 {[%emt 0:00:01]} d6 {[%emt 0:00:01]} 9. d4 {[%emt 0:00:02]} cxd4 {[%emt 0:00:00]} 10. Nxd4 {[%emt 0:00:03]} Nbd7 {[%emt 0:00:01]} 11. Rc1 {[%emt 0:00:03]} Re8 {[%emt 0:00:00]} 12. e3 {[%emt 0:00:05]} h6 {[%emt 0:00:01]} 13. Qe2 {[%emt 0:00:02]} Rb8 {[%emt 0:00:01]} 14. b4 {[%emt 0:00:01]} Ne5 {[%emt 0:00:01]} 15. Nb1 {[%emt 0:00:17]} Ned7 {[%emt 0:00:27]} 16. Nd2 {[%emt 0:00:06]} Bf8 {[%emt 0:00:08]} 17. N2b3 {[%emt 0:00:03]} e5 {[%emt 0:00:18]} 18. Nc2 {[%emt 0:00:17]} b6 {[%emt 0:00:01]} 19. a4 {[%emt 0:00:14]} Bb7 {[%emt 0:00:01]} 20. e4 a5 21. Ba3 {[%emt 0:00:22]} Rbc8 {[%emt 0:00:01]} 22. Nd2 {[%emt 0:00:09]} axb4 {[%emt 0:00:12]} 23. Nxb4 {[%emt 0:00:04]} Nc5 {[%emt 0:00:01]} 24. Nd5 {[%emt 0:00:06]} Bxd5 {[%emt 0:00:02]} 25. cxd5 {[%emt 0:00:09]} Ra8 {[%emt 0:00:15]} 26. Bxc5 {[%emt 0:00:25]} bxc5 {[%emt 0:00:02]} 27. Rc4 {[%emt 0:00:00]} Reb8 {[%emt 0:00:03]} 28. Qd3 {[%emt 0:00:03]} Rb2 {[%emt 0:00:06]} 29. Qc3 {[%emt 0:00:14]} Qb8 {[%emt 0:00:14]} 30. f4 {[%emt 0:00:02]} Nd7 {[%emt 0:00:04]} 31. a5 {[%emt 0:00:09]} Ra2 {[%emt 0:00:15]} 32. Bh3 {[%emt 0:00:01]} Nf6 {[%emt 0:00:16]} 33. fxe5 {[%emt 0:00:08]} dxe5 {[%emt 0:00:01]} 34. Nf3 {[%emt 0:00:12]} R8xa5 {[%emt 0:00:28]} 35. Qxe5 {[%emt 0:00:03]} Bd6 {[%emt 0:00:01]} 36. Qf5 {[%emt 0:00:06]} Qb2 {[%emt 0:00:04]} 37. e5 {[%emt 0:00:09]} Qe2 {[%emt 0:00:34]} 38. Rf4 {[%emt 0:00:11]} Be7 {[%emt 0:00:13]} 39. exf6 {[%emt 0:00:02]} Bxf6 {[%emt 0:00:01]} 40. Qc8+ {[%emt 0:00:03]} Kh7 {[%emt 0:00:02]} 41. Bf5+ {[%emt 0:00:02]} g6 {[%emt 0:00:00]} 42. Bh3 {[%emt 0:00:02]} Bd4+ {[%emt 0:00:05]} 43. Kh1 {[%emt 0:00:06]} Ra7 {[%emt 0:00:10]} 44. Qf8 {[%emt 0:00:01]} Bg7 {[%emt 0:00:05]} 45. Rxf7 {[%emt 0:00:03]} Rxf7 {[%emt 0:00:05]} 46. Qxf7 {[%emt 0:00:01]} Qe3 {[%emt 0:00:03]} 47. d6 {[%emt 0:00:04]} Rf2 {[%emt 0:00:02]} 48. Rxf2 {[%emt 0:00:03]} Qxf2 {[%emt 0:00:01]} 49. d7 {[%emt 0:00:02]} Qd4 {[%emt 0:00:02]} 50. Nxd4 {[%emt 0:00:01]} 1-0

[Event "RUS-ch Blitz Women 2018"]
[Site "Sochi"]
[Date "2018.10.07"]
[Round "9"]
[White "Ambartsumova, Karina"]
[Black "Vinokur, Yuliya"]
[Result "1-0"]
[ECO "B05"]
[WhiteElo "2379"]
[BlackElo "2170"]
[Annotator "NA"]
[PlyCount "63"]
[EventDate "2018.10.07"]
[EventType "swiss"]
[EventCountry "RUS"]
[SourceTitle "playchess.com"]
[Source "ChessBase"]
[SourceQuality "1"]
[TimeControl "180+2"]

1. e4 {[%emt 0:00:00]} Nf6 {[%emt 0:00:00]} 2. e5 {[%emt 0:00:02]} Nd5 {[%emt 0:00:01]} 3. d4 {[%emt 0:00:00]} d6 {[%emt 0:00:01]} 4. Nf3 {[%emt 0:00:01]} Bg4 {[%emt 0:00:02]} 5. Be2 {[%emt 0:00:02]} e6 {[%emt 0:00:01]} 6. O-O {[%emt 0:00:03]} Be7 {[%emt 0:00:01]} 7. c4 {[%emt 0:00:12]} Nb6 {[%emt 0:00:01]} 8. h3 {[%emt 0:00:04]} Bh5 {[%emt 0:00:02]} 9. exd6 {[%emt 0:00:06]} cxd6 {[%emt 0:00:01]} 10. Nc3 {[%emt 0:00:02]} O-O {[%emt 0:00:02]} 11. b3 {[%emt 0:00:14]} Nc6 {[%emt 0:00:03]} 12. d5 {[%emt 0:00:36]} exd5 {[%emt 0:00:01]} 13. Nxd5 {[%emt 0:00:01]} Nxd5 {[%emt 0:00:18]} 14. Qxd5 {[%emt 0:00:01]} Bf6 {[%emt 0:00:01]} 15. Qxh5 {[%emt 0:00:45]} Bxa1 {[%emt 0:00:02]} 16. Bg5 {[%emt 0:00:42]} Bf6 {[%emt 0:00:10]} 17. Bd3 {[%emt 0:00:01]} g6 18. Qh4 Bxg5 {[%emt 0:00:51]} 19. Nxg5 {[%emt 0:00:02]} h5 {[%emt 0:00:01]} 20. Qg3 {[%emt 0:00:02]} Ne5 {[%emt 0:00:04]} 21. Bc2 {[%emt 0:00:02]} Qf6 {[%emt 0:00:07]} 22. Rd1 {[%emt 0:00:04]} Rad8 {[%emt 0:00:03]} 23. Ne4 {[%emt 0:00:03]} Qe7 {[%emt 0:00:14]} 24. Nc3 {[%emt 0:00:02]} h4 {[%emt 0:00:23]} 25. Qf4 {[%emt 0:00:06]} Kg7 {[%emt 0:00:12]} 26. Nd5 {[%emt 0:00:01]} Qe6 {[%emt 0:00:01]} 27. Qxh4 {[%emt 0:00:02]} Rh8 {[%emt 0:00:01]} 28. Qg3 {[%emt 0:00:02]} Rh5 {[%emt 0:00:04]} 29. Nf4 {[%emt 0:00:01]} Nf3+ {[%emt 0:00:20]} 30. Qxf3 {[%emt 0:00:05]} Qe5 {[%emt 0:00:03]} 31. Nxh5+ {[%emt 0:00:03]} Qxh5 {[%emt 0:00:02]} 32. Qxh5 {[%emt 0:00:04]} 1-0